lending/lending_fUSD_20250808
["ID","MTS","AMOUNT","RATE_DAILY","PERIOD"]
[377925914,1754613242855,-550.11976945,0.00025479,2]
[377925915,1754613242866,-896.00046006,0.00025479,2]
[377925916,1754613242878,-560.34875807,0.00025479,2]
[377925917,1754613242891,-805.13573488,0.00025479,2]
[377925918,1754613242903,-638.62754427,0.00025479,2]
[377925919,1754613242915,-1258.98879979,0.00025479,2]
[377925920,1754613242925,-593.83822441,0.00025479,2]
[377925921,1754613242937,-622.26122189,0.00025479,2]
[377925922,1754613242947,-1105.65048623,0.00025479,2]
[377925923,1754613242961,-352.152162,0.00025479,2]
[377925924,1754613242971,-1707.72162287,0.00025479,2]
[377925925,1754613242983,-352.152162,0.00025479,2]
[377925926,1754613242993,-1287.46339932,0.00025479,2]
[377925927,1754613243003,-1515.29412011,0.00025479,2]
[377925928,1754613243014,-1621.04985331,0.00025479,2]
[377925929,1754613243025,-1063.32994925,0.00025479,2]
[377925930,1754613243037,-420.834801,0.00025479,2]
[377925931,1754613243047,-420.834801,0.00025479,2]
[377925932,1754613243059,-1622.27213527,0.00025479,2]
[377925933,1754613243070,-1480.97575117,0.00025479,2]
[377925934,1754613243080,-577.13860869,0.00025479,2]
[377925935,1754613243091,-159.05013033,0.00025479,2]
[377925936,1754613243103,-877.24127856,0.00025479,2]
[377925937,1754613243113,-981.73197058,0.00025479,2]
[377925938,1754613243123,-1040.48,0.00025479,2]
[377925939,1754613243133,-447.16026106,0.00025479,2]
[377925940,1754613243144,-1390.29,0.00025479,2]
[377925941,1754613243154,-1313.02,0.00025479,2]
[377925942,1754613243165,-1460.16764736,0.00025479,2]
[377925943,1754613243176,-446.55407625,0.00025479,2]
[377925944,1754613243186,-680.3,0.00025479,2]
[377925945,1754613243196,-783.32,0.00025479,2]
[377925946,1754613243210,-806.5,0.00025479,2]
[377925947,1754613243220,-633.10712189,0.00025479,2]
[377925948,1754613243230,-246.791616,0.00025479,2]
[377925949,1754613243241,-998.91,0.00025479,2]
[377925950,1754613243252,-246.791616,0.00025479,2]
[377925951,1754613243263,-803.74884785,0.00025479,2]
[377925952,1754613243393,-408.98,0.00025479,2]
[377925953,1754613243404,-436.4859361,0.00025479,2]
[377925954,1754613243414,-1211.18399637,0.00025479,2]
[377925955,1754613243424,-832.34298551,0.00025479,2]
[377925956,1754613243434,-634.74463442,0.00025479,2]
[377925957,1754613243445,-1042.44603415,0.00025479,2]
[377925958,1754613243458,-707.49450774,0.00025479,2]
[377925959,1754613243469,-455.74563725,0.00025479,2]
[377925960,1754613243480,-412.0,0.00025479,2]
[377925961,1754613243491,-854.33802846,0.00025479,2]
[377925962,1754613243502,-484.48745473,0.00025479,2]
[377925963,1754613243513,-447.09979527,0.00025479,2]
[377925964,1754613243525,-1513.24690023,0.00025479,2]
[377925965,1754613243535,-9366.91142404,0.00025479,2]
[377925966,1754613243545,-801.86,0.00025479,2]
[377925967,1754613243556,-1103.08736783,0.00025479,2]
[377925968,1754613243566,-1785.26,0.00025479,2]
[377925969,1754613243578,-512.19747824,0.00025479,2]
[377925970,1754613243589,-1209.13408339,0.00025479,2]
[377925971,1754613243599,-838.15260432,0.00025479,2]
[377925972,1754613243609,-588.93316319,0.00025479,2]
[377925973,1754613243620,-1338.61007903,0.00025479,2]
[377925974,1754613243637,-1005.9803048,0.00025479,2]
[377925975,1754613243647,-1973.48959979,0.00025479,2]
[377925976,1754613243658,-467.4894223,0.00025479,2]
[377925977,1754613243669,-969.31369771,0.00025479,2]
[377925978,1754613243679,-1305.0575957,0.00025479,2]
[377925979,1754613243690,-603.04887828,0.00025479,2]
[377925980,1754613243700,-2028.06015486,0.00025479,2]
[377925981,1754613243712,-688.8684678,0.00025479,2]
[377925982,1754613243722,-1312.88664012,0.00025479,2]
[377925983,1754613243732,-703.58651618,0.00025479,2]
[377925984,1754613243743,-2100.33546601,0.00025479,2]
[377925985,1754613243754,-1134.36983685,0.00025479,2]
[377925986,1754613243765,-1383.72363006,0.00025479,2]
[377925987,1754613243776,-1570.03370654,0.00025479,2]
[377925988,1754613243786,-529.40130165,0.00025479,2]
[377925989,1754613243797,-812.58914751,0.00025479,2]
[377925990,1754613243807,-871.70601702,0.00025479,2]
[377925991,1754613243819,-604.03315014,0.00025479,2]
[377925992,1754613243829,-801.52227982,0.00025479,2]
[377925993,1754613243840,-755.58664338,0.00025479,2]
[377925994,1754613243850,-1094.66271814,0.00025479,2]
[377925995,1754613243861,-1864.15563058,0.00025479,2]
[377925996,1754613243871,-1856.33080708,0.00025479,2]
[377925997,1754613243884,-744.53262447,0.00025479,2]
[377925998,1754613243896,-574.07115346,0.00025479,2]
[377925999,1754613243907,-2819.71989558,0.00025479,2]
[377926000,1754613243918,-963.91159687,0.00025479,2]
[377926001,1754613243928,-641.98726458,0.00025479,2]
[377926002,1754613243938,-421.90299023,0.00025479,2]
[377926003,1754613243948,-711.67796071,0.00025479,2]
[377926004,1754613243961,-1482.43813446,0.00025479,2]
[377926005,1754613243972,-1692.64670843,0.00025479,2]
[377926006,1754613243982,-1131.05,0.00025479,2]
[377926007,1754613243992,-561.95447486,0.00025479,2]
[377926008,1754613244003,-9960.35074185,0.00025479,2]
[377926009,1754613244013,-606.84357517,0.00025479,2]
[377926010,1754613244023,-1592.39275928,0.00025479,2]
[377926011,1754613244033,-546.69101391,0.00025479,2]
[377926012,1754613244043,-500.54161851,0.00025479,2]
[377926013,1754613244054,-1471.78471127,0.00025479,2]
[377926014,1754613244065,-1316.98056501,0.00025479,2]
[377926015,1754613244075,-2507.29196484,0.00025479,2]
[377926016,1754613244085,-1758.53869234,0.00025479,2]
[377926017,1754613244096,-1144.71245951,0.00025479,2]
[377926018,1754613244106,-1450.1723405,0.00025479,2]
[377926019,1754613244116,-416.39178891,0.00025479,2]
[377926020,1754613244126,-567.93667788,0.00025479,2]
[377926021,1754613244136,-1555.83838337,0.00025479,2]
[377926022,1754613244147,-974.02500994,0.00025479,2]
[377926023,1754613244157,-1577.37267088,0.00025479,2]
[377926024,1754613244166,-2230.45143646,0.00025479,2]
[377926025,1754613244176,-1658.22,0.00025479,2]
[377926026,1754613244191,-1949.45497653,0.00025479,2]
[377926027,1754613244209,-545.07716519,0.00025479,2]
[377926028,1754613244220,-1736.88069322,0.00025479,2]
[377926029,1754613244230,-1506.2542446,0.00025479,2]
[377926030,1754613244241,-1668.88582976,0.00025479,2]
[377926031,1754613244255,-2189.41295628,0.00025479,2]
[377926032,1754613244265,-723.44903622,0.00025479,2]
[377926033,1754613244275,-1222.53573701,0.00025479,2]
[377926034,1754613244284,-1196.53636272,0.00025479,2]
[377926035,1754613244294,-2004.17126508,0.00025479,2]
[377926036,1754613244305,-527.43794649,0.00025479,2]
[377926037,1754613244314,-444.48216754,0.00025479,2]
[377926038,1754613244325,-554.59131158,0.00025479,2]
[377926039,1754613244335,-1393.11825287,0.00025479,2]
[377926040,1754613244346,-1109.23822657,0.00025479,2]
[377926041,1754613244356,-624.96,0.00025479,2]
[377926042,1754613244366,-1290.07485751,0.00025479,2]
[377926043,1754613244377,-2031.48575531,0.00025479,2]
[377926044,1754613244387,-1461.10553189,0.00025479,2]
[377926045,1754613244397,-469.30086894,0.00025479,2]
[377926046,1754613244408,-2043.72734097,0.00025479,2]
[377926047,1754613244419,-1164.63802398,0.00025479,2]
[377926048,1754613244429,-2666.41178636,0.00025479,2]
[377926049,1754613244439,-2592.89407054,0.00025479,2]
[377926050,1754613244448,-1333.96179878,0.00025479,2]
[377926051,1754613244461,-694.97164039,0.00025479,2]
[377926052,1754613244471,-750.58740144,0.00025479,2]
[377926053,1754613244481,-631.92458957,0.00025479,2]
[377926054,1754613244491,-1164.80659895,0.00025479,2]
[377926055,1754613244502,-2811.60790664,0.00025479,2]
[377926056,1754613244512,-518.35395656,0.00025479,2]
[377926057,1754613244522,-465.43687566,0.00025479,2]
[377926058,1754613244533,-544.00219521,0.00025479,2]
[377926059,1754613244543,-1133.78275801,0.00025479,2]
[377926060,1754613244553,-1818.0524183,0.00025479,2]
[377926061,1754613244562,-1288.12410512,0.00025479,2]
[377926062,1754613244572,-1275.75398658,0.00025479,2]
[377926063,1754613244582,-4407.35335538,0.00025479,2]
[377926064,1754613244592,-962.05059606,0.00025479,2]
[377926065,1754613244602,-453.30903245,0.00025479,2]
[377926066,1754613244612,-880.00737435,0.00025479,2]
[377926067,1754613244621,-1117.4651808,0.00025479,2]
[377926068,1754613244631,-1714.45327654,0.00025479,2]
[377926069,1754613244641,-681.16,0.00025479,2]
[377926070,1754613244654,-1989.85190102,0.00025479,2]
[377926071,1754613244665,-633.65281515,0.00025479,2]
[377926072,1754613244675,-1105.63573439,0.00025479,2]
[377926073,1754613244685,-426.81695277,0.00025479,2]
[377926074,1754613244695,-1605.00457638,0.00025479,2]
[377926075,1754613244705,-446.18159159,0.00025479,2]
[377926076,1754613244717,-1383.69617177,0.00025479,2]
[377926077,1754613244727,-1061.76163464,0.00025479,2]
[377926078,1754613244738,-2286.54477758,0.00025479,2]
[377926079,1754613244748,-1419.78173668,0.00025479,2]
[377926080,1754613244758,-608.07159346,0.00025479,2]
[377926081,1754613244769,-1349.50071579,0.00025479,2]
[377926082,1754613244778,-1214.99745288,0.00025479,2]
[377926083,1754613244789,-994.78471546,0.00025479,2]
[377926084,1754613244799,-2503.7026343,0.00025479,2]
[377926085,1754613244809,-668.85546813,0.00025479,2]
[377926086,1754613244819,-2034.92872922,0.00025479,2]
[377926087,1754613244830,-578.82274067,0.00025479,2]
[377926088,1754613244842,-1646.29183042,0.00025479,2]
[377926089,1754613244853,-1889.64453682,0.00025479,2]
[377926090,1754613244864,-1501.02590898,0.00025479,2]
[377926091,1754613244874,-1528.95365191,0.00025479,2]
[377926092,1754613244886,-1277.114646,0.00025479,2]
[377926093,1754613244897,-1025.82397801,0.00025479,2]
[377926094,1754613244907,-2128.85306511,0.00025479,2]
[377926095,1754613244918,-547.43631583,0.00025479,2]
[377926096,1754613244929,-1086.45840544,0.00025479,2]
[377926097,1754613244939,-607.01457663,0.00025479,2]
[377926098,1754613244950,-1120.39855384,0.00025479,2]
[377926099,1754613244963,-420.34129426,0.00025479,2]
[377926100,1754613244974,-489.57936127,0.00025479,2]
[377926101,1754613244984,-1345.98485671,0.00025479,2]
[377926102,1754613244995,-1492.96714624,0.00025479,2]
[377926103,1754613245006,-1434.99087133,0.00025479,2]
[377926104,1754613245016,-1951.7251426,0.00025479,2]
[377926105,1754613245026,-2325.79774553,0.00025479,2]
[377926106,1754613245037,-1066.12589088,0.00025479,2]
[377926107,1754613245047,-917.26729548,0.00025479,2]
[377926108,1754613245057,-1151.1953508,0.00025479,2]
[377926109,1754613245067,-1376.05256689,0.00025479,2]
[377926110,1754613245076,-1350.98372655,0.00025479,2]
[377926111,1754613245086,-1849.03293722,0.00025479,2]
[377926112,1754613245096,-1409.1053734,0.00025479,2]
[377926113,1754613245105,-451.66591016,0.00025479,2]
[377926114,1754613245115,-1657.7397904,0.00025479,2]
[377926115,1754613245124,-2074.91816257,0.00025479,2]
[377926116,1754613245134,-608.82062063,0.00025479,2]
[377926117,1754613245144,-1481.88708686,0.00025479,2]
[377926118,1754613245154,-1826.79677261,0.00025479,2]
[377926119,1754613245164,-1400.20712469,0.00025479,2]
[377926120,1754613245174,-2222.23400605,0.00025479,2]
[377926121,1754613245183,-1119.10807438,0.00025479,2]
[377926122,1754613245193,-1588.71401823,0.00025479,2]
[377926123,1754613245204,-880.258357,0.00025479,2]
[377926124,1754613245216,-2548.04742478,0.00025479,2]
[377926125,1754613245225,-1688.75376783,0.00025479,2]
[377926126,1754613245235,-1345.73696079,0.00025479,2]
[377926127,1754613245244,-1803.37952745,0.00025479,2]
[377926128,1754613245254,-3068.6296716,0.00025479,2]
[377926129,1754613245264,-1888.24586185,0.00025479,2]
[377926130,1754613245274,-846.92104033,0.00025479,2]
[377926131,1754613245283,-1278.25176481,0.00025479,2]
[377926132,1754613245293,-3553.38560226,0.00025479,2]
[377926133,1754613245303,-2028.04765474,0.00025479,2]
[377926134,1754613245313,-1218.95850688,0.00025479,2]
[377926135,1754613245328,-2017.09289353,0.00025479,2]
[377926136,1754613245338,-1858.10643511,0.00025479,2]
[377926137,1754613245348,-633.32588543,0.00025479,2]
[377926138,1754613245358,-1934.96258959,0.00025479,2]
[377926139,1754613245368,-2106.25887997,0.00025479,2]
[377926140,1754613245377,-1410.99431659,0.00025479,2]
[377926141,1754613245387,-1461.19537651,0.00025479,2]
[377926142,1754613245397,-881.25971951,0.00025479,2]
[377926143,1754613245407,-2341.71769057,0.00025479,2]
[377926144,1754613245417,-1720.6866221,0.00025479,2]
[377926145,1754613245426,-1452.17327373,0.00025479,2]
[377926146,1754613245436,-1621.01482974,0.00025479,2]
[377926147,1754613245446,-496.70335418,0.00025479,2]
[377926148,1754613245456,-634.30308683,0.00025479,2]
[377926149,1754613245466,-559.07929542,0.00025479,2]
[377926150,1754613245475,-2615.8294632,0.00025479,2]
[377926151,1754613245485,-2144.31699786,0.00025479,2]
[377926152,1754613245495,-1617.19547722,0.00025479,2]
[377926153,1754613245505,-1657.02,0.00025479,2]
[377926154,1754613245515,-2107.98137438,0.00025479,2]
[377926155,1754613245524,-749.5910513,0.00025479,2]
[377926156,1754613245535,-1646.47154017,0.00025479,2]
[377926157,1754613245545,-1193.59076031,0.00025479,2]
[377926158,1754613245555,-2388.68720423,0.00025479,2]
[377926159,1754613245565,-199.18881113,0.00025479,2]
[377926160,1754613245575,-1289.04887582,0.00025479,2]
[377926161,1754613245585,-2311.38283034,0.00025479,2]
[377926162,1754613245595,-1822.67724592,0.00025479,2]
[377926163,1754613245604,-612.36728512,0.00025479,2]
[377926164,1754613245615,-2350.92012133,0.00025479,2]
[377926165,1754613245627,-1537.65381017,0.00025479,2]
[377926166,1754613245637,-1810.15083944,0.00025479,2]
[377926167,1754613245647,-483.10029918,0.00025479,2]
[377926168,1754613245657,-511.76448004,0.00025479,2]
[377926169,1754613245667,-1369.32622418,0.00025479,2]
[377926170,1754613245676,-2136.7,0.00025479,2]
[377926171,1754613245686,-1248.27273689,0.00025479,2]
[377926172,1754613245696,-1594.6396858,0.00025479,2]
[377926173,1754613245706,-483.87613438,0.00025479,2]
[377926174,1754613245716,-1205.13972768,0.00025479,2]
[377926175,1754613245727,-893.29992114,0.00025479,2]
[377926176,1754613245737,-1678.51976433,0.00025479,2]
[377926177,1754613245746,-845.92664647,0.00025479,2]
[377926178,1754613245757,-5670.80861099,0.00025479,2]
[377926179,1754613245767,-1256.97437108,0.00025479,2]
[377926180,1754613245778,-2578.48044999,0.00025479,2]
[377926181,1754613245788,-1440.45635176,0.00025479,2]
[377926182,1754613245799,-663.09209929,0.00025479,2]
[377926183,1754613245809,-739.16693069,0.00025479,2]
[377926184,1754613245819,-575.21938132,0.00025479,2]
[377926185,1754613245829,-2097.7219458,0.00025479,2]
[377926186,1754613245839,-500.28055308,0.00025479,2]
[377926187,1754613245849,-2047.50583288,0.00025479,2]
[377926188,1754613245859,-1244.22742437,0.00025479,2]
[377926189,1754613245869,-423.12567136,0.00025479,2]
[377926190,1754613245879,-759.37201558,0.00025479,2]
[377926191,1754613245891,-1757.91589447,0.00025479,2]
[377926192,1754613245903,-1317.08239204,0.00025479,2]
[377926193,1754613245912,-1321.07101412,0.00025479,2]
[377926194,1754613245922,-454.39570619,0.00025479,2]
[377926195,1754613245933,-3377.09556125,0.00025479,2]
[377926196,1754613245943,-1895.63487457,0.00025479,2]
[377926197,1754613245953,-1065.81402672,0.00025479,2]
[377926198,1754613245965,-2465.16291266,0.00025479,2]
[377926199,1754613245975,-1208.65290354,0.00025479,2]
[377926200,1754613245985,-2359.68250686,0.00025479,2]
[377926201,1754613245995,-671.23582364,0.00025479,2]
[377926202,1754613246005,-916.63356982,0.00025479,2]
[377926203,1754613246014,-930.4112448,0.00025479,2]
[377926204,1754613246024,-1926.69175184,0.00025479,2]
[377926205,1754613246035,-1206.87061064,0.00025479,2]
[377926206,1754613246044,-831.41646586,0.00025479,2]
[377926207,1754613246054,-1982.54830245,0.00025479,2]
[377926208,1754613246064,-458.43,0.00025479,2]
[377926209,1754613246074,-1712.88974218,0.00025479,2]
[377926210,1754613246084,-1225.15987052,0.00025479,2]
[377926211,1754613246096,-1260.21977413,0.00025479,2]
[377926212,1754613246106,-821.49678262,0.00025479,2]
[377926213,1754613246116,-2026.30188944,0.00025479,2]
[377926214,1754613246126,-1205.54533086,0.00025479,2]
[377926215,1754613246136,-785.62243858,0.00025479,2]
[377926216,1754613246147,-1139.12975825,0.00025479,2]
[377926217,1754613246159,-517.73,0.00025479,2]
[377926218,1754613246169,-720.92809951,0.00025479,2]
[377926219,1754613246179,-1835.52032964,0.00025479,2]
[377926220,1754613246188,-1444.17127191,0.00025479,2]
[377926221,1754613246199,-2627.02456802,0.00025479,2]
[377926222,1754613246210,-1057.35296566,0.00025479,2]
[377926223,1754613246220,-1786.03902532,0.00025479,2]
[377926224,1754613246230,-594.53100548,0.00025479,2]
[377926225,1754613246240,-737.73168858,0.00025479,2]
[377926226,1754613246250,-760.34656059,0.00025479,2]
[377926227,1754613246259,-1256.35734826,0.00025479,2]
[377926228,1754613246269,-1213.52467324,0.00025479,2]
[377926229,1754613246279,-782.24914979,0.00025479,2]
[377926230,1754613246288,-1326.75100234,0.00025479,2]
[377926231,1754613246298,-2043.4742596,0.00025479,2]
[377926232,1754613246308,-2287.43812604,0.00025479,2]
[377926233,1754613246317,-1328.43499504,0.00025479,2]
[377926234,1754613246327,-1087.78880257,0.00025479,2]
[377926235,1754613246337,-1429.72242053,0.00025479,2]
[377926236,1754613246346,-1291.88027189,0.00025479,2]
[377926237,1754613246356,-718.94746929,0.00025479,2]
[377926238,1754613246366,-507.81668539,0.00025479,2]
[377926239,1754613246376,-2952.76943441,0.00025479,2]
[377926240,1754613246386,-1573.64166799,0.00025479,2]
[377926241,1754613246395,-2110.12291732,0.00025479,2]
[377926242,1754613246405,-1130.0116881,0.00025479,2]
[377926243,1754613246416,-1998.93787652,0.00025479,2]
[377926244,1754613246426,-2405.69065616,0.00025479,2]
[377926245,1754613246436,-662.79217816,0.00025479,2]
[377926246,1754613246446,-1426.13316435,0.00025479,2]
[377926247,1754613246457,-921.89800145,0.00025479,2]
[377926248,1754613246469,-1164.66016241,0.00025479,2]
[377926249,1754613246478,-918.42896168,0.00025479,2]
[377926250,1754613246487,-1165.1470725,0.00025479,2]
[377926251,1754613246497,-2948.14388574,0.00025479,2]
[377926252,1754613246506,-781.11352624,0.00025479,2]
[377926253,1754613246515,-1258.27352348,0.00025479,2]
[377926254,1754613246525,-620.84957823,0.00025479,2]
[377926255,1754613246535,-876.24835429,0.00025479,2]
[377926256,1754613246545,-599.92811814,0.00025479,2]
[377926257,1754613246556,-1217.2775707,0.00025479,2]
[377926258,1754613246565,-21934.42964443,0.00025479,2]
[377926259,1754613246574,-2199.49362855,0.00025479,2]
[377926260,1754613246584,-479.0199683,0.00025479,2]
[377926261,1754613246594,-2212.98684522,0.00025479,2]
[377926262,1754613246604,-1553.34150134,0.00025479,2]
[377926263,1754613246614,-1719.02066649,0.00025479,2]
[377926264,1754613246624,-1128.25369676,0.00025479,2]
[377926265,1754613246634,-264.26275806,0.00025479,2]
[377926266,1754613246643,-454.30827905,0.00025479,2]
[377926267,1754613246653,-913.28236566,0.00025479,2]
[377926268,1754613246664,-484.22756137,0.00025479,2]
[377926269,1754613246673,-2805.23037418,0.00025479,2]
[377926270,1754613246683,-1717.35604173,0.00025479,2]
[377926271,1754613246693,-674.10561554,0.00025479,2]
[377926272,1754613246703,-445.30526024,0.00025479,2]
[377926273,1754613246714,-3590.10289196,0.00025479,2]
[377926274,1754613246724,-1638.29200697,0.00025479,2]
[377926275,1754613246733,-1890.35246826,0.00025479,2]
[377926276,1754613246744,-1662.72525588,0.00025479,2]
[377926277,1754613246754,-820.68841404,0.00025479,2]
[377926278,1754613246765,-600.69,0.00025479,2]
[377926279,1754613246775,-1179.63184776,0.00025479,2]
[377926280,1754613246786,-2525.41100328,0.00025479,2]
[377926281,1754613246796,-2339.0535511,0.00025479,2]
[377926282,1754613246807,-2336.10935698,0.00025479,2]
[377926283,1754613246817,-1235.15961624,0.00025479,2]
[377926284,1754613246828,-1814.67564013,0.00025479,2]
[377926285,1754613246839,-862.7846738,0.00025479,2]
[377926286,1754613246849,-1881.1182991,0.00025479,2]
[377926287,1754613246860,-674.85395762,0.00025479,2]
[377926288,1754613246871,-1651.36811404,0.00025479,2]
[377926289,1754613246885,-5511.0,0.000256,3]
[377926290,1754613246898,-8470.24870706,0.00025606,2]
[377926291,1754613246908,-5000.0,0.00025606,2]
[377926292,1754613246919,-5000.0,0.00025606,2]
[377926293,1754613246931,-511.0,0.00025734,13]
[377926294,1754613246942,-1770.84155959,0.00025739,2]
[377926295,1754613246952,-2033.80990241,0.00025739,2]
[377926296,1754613246965,-1929.07641607,0.00025739,2]
[377926297,1754613246976,-1964.5814753,0.00025739,2]
[377926298,1754613246986,-1517.67307531,0.00025739,2]
[377926299,1754613246996,-2517.35904736,0.00025739,2]
[377926300,1754613247006,-160.0,0.00025912,2]
[377926301,1754613247016,-306.67,0.00025968,2]
[377926302,1754613247026,-504.51350952,0.00025988,3]
[377926303,1754613247037,-3022.68658214,0.00026,2]
[377926304,1754613247047,-2662.75052957,0.00026,2]
[377926305,1754613247057,-13045.06798477,0.00026,7]
[377926306,1754613247067,-160.0,0.00026,7]
[377926307,1754613247078,-542.21540005,0.00026,30]
[377926308,1754613247087,-1353.18859465,0.00026,2]
[377926309,1754613247098,-842.27441137,0.00026,7]
[377926310,1754613247108,-457.55740054,0.00026,3]
[377926311,1754613247119,-457.55740054,0.00026,7]
[377926312,1754613247129,-5511.0,0.00026,5]
[377926313,1754613247139,-211.58213282,0.00026,7]
[377926314,1754613247149,-4000.0,0.00026,4]
[377926315,1754613247160,-400.0,0.00026027,2]
[377926316,1754613247170,-400.0,0.00026027,2]
[377926317,1754613247179,-400.0,0.00026027,2]
[377926318,1754613247189,-400.0,0.00026027,2]
[377926319,1754613247199,-400.0,0.00026027,2]
[377926320,1754613247211,-426.69694851,0.00026027,2]
[377926321,1754613247221,-479.97,0.00026027,2]
[377926322,1754613247232,-479.97,0.00026027,2]
[377926323,1754613247243,-479.97,0.00026027,2]
[377926324,1754613247254,-479.97,0.00026027,2]
[377926325,1754613247264,-479.97,0.00026027,2]
[377926326,1754613247275,-479.97,0.00026027,2]
[377926327,1754613247285,-479.97,0.00026027,2]
[377926328,1754613247296,-479.97,0.00026027,2]
[377926329,1754613247307,-479.97,0.00026027,2]
[377926330,1754613247319,-479.97,0.00026027,2]
[377926331,1754613247330,-479.97,0.00026027,2]
[377926332,1754613247341,-479.97,0.00026027,2]
[377926333,1754613247352,-479.97,0.00026027,2]
[377926334,1754613247362,-479.97,0.00026027,2]
[377926335,1754613247372,-479.97,0.00026027,2]
[377926336,1754613247383,-479.97,0.00026027,2]
[377926337,1754613247392,-479.97,0.00026027,2]
[377926338,1754613247403,-479.97,0.00026027,2]
[377926339,1754613247415,-479.97,0.00026027,2]
[377926340,1754613247425,-479.97,0.00026027,2]
[377926341,1754613247435,-479.97,0.00026027,2]
[377926342,1754613247445,-479.97,0.00026027,2]
[377926343,1754613247455,-479.97,0.00026027,2]
[377926344,1754613247467,-480.12307714,0.00026027,2]
[377926345,1754613247477,-1695.98,0.00026027,2]
[377926346,1754613247487,-1695.98,0.00026027,2]
[377926347,1754613247497,-1695.98,0.00026027,2]
[377926348,1754613247508,-1695.98,0.00026027,2]
[377926349,1754613247518,-1695.98,0.00026027,2]
[377926350,1754613247529,-1695.98,0.00026027,2]
[377926351,1754613247538,-1695.98,0.00026027,2]
[377926352,1754613247548,-1695.98,0.00026027,2]
[377926353,1754613247558,-1695.98,0.00026027,2]
[377926354,1754613247568,-1695.98,0.00026027,2]
[377926355,1754613247578,-1695.98,0.00026027,2]
[377926356,1754613247587,-1695.98,0.00026027,2]
[377926357,1754613247598,-1695.98,0.00026027,2]
[377926358,1754613247607,-1695.98,0.00026027,2]
[377926359,1754613247617,-1695.98,0.00026027,2]
[377926360,1754613247627,-1695.98,0.00026027,2]
[377926361,1754613247637,-1695.98,0.00026027,2]
[377926362,1754613247648,-1695.98,0.00026027,2]
[377926363,1754613247658,-1695.98,0.00026027,2]
[377926364,1754613247668,-1695.98,0.00026027,2]
[377926365,1754613247678,-1695.98,0.00026027,2]
[377926366,1754613247688,-1695.98,0.00026027,2]
[377926367,1754613247698,-1695.98,0.00026027,2]
[377926368,1754613247707,-1696.20630183,0.00026027,2]
[377926369,1754613247718,-28211.70846249,0.0002614,2]
[377926370,1754613247728,-500.0,0.00026219,30]
[377926371,1754613247738,-500.0,0.00026219,30]
[377926372,1754613247748,-500.0,0.00026219,30]
[377926373,1754613247758,-500.0,0.00026219,30]
[377926374,1754613247768,-500.0,0.00026219,30]
[377926375,1754613247777,-500.0,0.00026219,30]
[377926376,1754613247787,-500.0,0.00026219,30]
[377926377,1754613247797,-500.0,0.00026219,30]
[377926378,1754613247807,-500.0,0.00026219,30]
[377926379,1754613247817,-500.0,0.00026219,30]
[377926380,1754613247827,-156.76689004,0.00026219,30]
[377926381,1754613247837,-500.0,0.00026219,30]
[377926382,1754613247847,-500.0,0.00026219,30]
[377926383,1754613247858,-500.0,0.00026219,30]
[377926384,1754613247869,-500.0,0.00026219,30]
[377926385,1754613247881,-500.0,0.00026219,30]
[377926386,1754613247893,-500.0,0.00026219,30]
[377926387,1754613247904,-261.63747709,0.00026219,30]
[377926388,1754613247914,-267.11,0.0002624,2]
[377926389,1754613247927,-637.67,0.00026278,7]
[377926390,1754613247938,-185.0,0.0002629,2]
[377926391,1754613247950,-374.0,0.00026388,7]
[377926392,1754613247962,-26832.29037895,0.000264,2]
[377926393,1754613247974,-332.60791905,0.00026403,2]
[377926394,1754613247985,-150.16,0.00026484,2]
[377926395,1754613247995,-40577.1242225,0.000265,2]
[377926396,1754613248006,-500.0,0.00026507,2]
[377926397,1754613248016,-3028.0,0.00026575,7]
[377926398,1754613248026,-374.0,0.00026581,7]
[377926399,1754613248037,-311.34,0.00026676,2]
[377926400,1754613248047,-463.225,0.00026849,7]
[377926401,1754613248058,-164.96,0.00026891,2]
[377926402,1754613248068,-1000.0,0.00026943,2]
[377926403,1754613248078,-5000.0,0.00027,2]
[377926404,1754613248088,-2000.0,0.00027,2]
[377926405,1754613248098,-4000.0,0.00027,4]
[377926406,1754613248108,-2285.749618,0.0002701,2]
[377926407,1754613248118,-3593.88,0.00027123,2]
[377926408,1754613248128,-4609.0,0.00027166,2]
[377926409,1754613248139,-160.0,0.00027281,2]
[377926410,1754613248149,-1538.45987608,0.0002739,7]
[377926411,1754613248159,-200.0,0.00027396,2]
[377926412,1754613248169,-2053.17229285,0.00027397,30]
[377926413,1754613248179,-500.0,0.00027397,10]